bitfinex/quotes_ETHUSD_20250323
["timestamp","ask_amount","ask_price","bid_price","bid_amount"]
[1742751943864,5.01353,1994.6,1994.5,0.8258]
[1742751944062,5.01353,1994.6,1994.4,26.526]
[1742751944455,5.01333,1994.7,1994.4,26.526]
[1742751944656,8.31937061,1994.9,1994.4,26.526]
[1742751944657,5.01378,1994.5,1994.4,26.526]
[1742751944881,5.01357,1994.6,1994.4,26.526]
[1742751945656,10.02693,1994.7,1994.4,26.526]
[1742751945990,5.01345,1994.7,1994.4,26.526]
[1742751946149,10.02685,1994.7,1994.4,26.526]
[1742751946348,5.01339,1994.7,1994.4,26.526]
[1742751947756,10.02621,1994.8,1994.4,26.526]
[1742751948182,10.02622,1994.8,1994.4,26.526]
[1742751949086,10.0262,1994.8,1994.4,26.526]
[1742751949495,5.01329,1994.7,1994.4,26.526]
[1742751951563,5.01303,1994.8,1994.4,26.526]
[1742751951892,5.01329,1994.7,1994.4,26.526]
[1742751954207,5.01365,1994.6,1994.4,26.526]
[1742751954389,5.01362,1994.6,1994.4,26.526]
[1742751955713,5.01362,1994.6,1994.5,118.0]
[1742751961790,5.01334,1994.7,1994.5,118.0]
[1742751961991,5.01353,1994.6,1994.5,118.0]
[1742751962529,10.02682,1994.7,1994.5,118.0]
[1742751963130,5.01334,1994.7,1994.5,118.0]
[1742751964824,10.02683,1994.7,1994.5,118.0]
[1742751965029,13.00563042,1994.7,1994.5,118.0]
[1742751965226,5.01353,1994.6,1994.5,118.0]
[1742751968837,7.99212042,1994.7,1994.5,118.0]
[1742751969238,13.00562042,1994.7,1994.5,118.0]
[1742751969410,5.01353,1994.6,1994.5,118.0]
[1742751970040,7.99100042,1995.2,1995.0,94.00301916]
[1742751970213,8.54524892,1995.1,1995.0,88.04541832]
[1742751970533,13.55752892,1995.1,1995.0,88.04541832]
[1742751972032,16.55752892,1995.1,1995.0,88.04541832]
[1742751973422,8.3857285,1995.1,1995.0,88.04541832]
[1742751974961,5.0122,1995.2,1995.0,88.04541832]
[1742751975163,7.99100042,1995.2,1995.0,88.04541832]
[1742751975363,8.00034042,1995.4,1995.0,93.03195467]
[1742751975657,5.01182,1995.3,1995.0,93.82775467]
[1742751975863,13.01198042,1995.4,1995.0,98.84025467]
[1742751976064,8.00034042,1995.4,1995.0,98.84010467]
[1742751976227,8.00034042,1995.4,1995.0,93.82775467]
[1742751976425,10.0239,1995.3,1995.0,93.82775467]
[1742751976671,2.97880042,1995.1,1995.0,88.84121832]
[1742751976833,2.97880042,1995.1,1995.0,88.04541832]
[1742751976834,7.99108042,1995.1,1995.0,88.04541832]
[1742751979763,2.97880042,1995.1,1995.0,88.04541832]
[1742751979969,7.99108042,1995.1,1995.0,88.04541832]
[1742751980942,2.97880042,1995.1,1995.0,88.04541832]
[1742751981147,7.99060042,1995.3,1995.0,93.03195467]
[1742751981381,7.99060042,1995.3,1995.1,0.7646]
[1742751981544,2.97880042,1995.3,1995.1,0.7646]
[1742751981881,5.01211,1995.2,1995.0,93.03195467]
[1742751982110,2.97880042,1995.1,1994.9,5.8306]
[1742751983401,2.97880042,1995.1,1994.9,5.066]
[1742751983907,2.97880042,1995.1,1994.8,26.508]
[1742751984110,2.97880042,1995.1,1994.8,36.57999]
[1742751984415,2.97880042,1995.3,1994.9,5.01271]
[1742751985719,2.97880042,1995.3,1994.9,5.01269]
[1742751985895,2.97880042,1995.3,1994.9,10.02535]
[1742751986078,2.97880042,1995.3,1994.9,5.01266]
[1742751986302,2.97880042,1995.3,1994.9,5.01261]
[1742751986506,2.97880042,1995.3,1994.9,9.0941482]
[1742751987377,2.97880042,1995.3,1995.0,0.7551]
[1742751987921,1.9785738,1995.3,1995.0,0.7551]
[1742751988615,2.97880042,1995.1,1994.8,36.57999]
[1742751988910,2.97880042,1995.3,1994.9,5.01269]
[1742751989122,2.97880042,1995.3,1995.0,5.513749]
[1742751989486,5.01079,1995.7,1995.1,10.77942]
[1742751989720,2.97880042,1995.6,1995.1,5.76717]
[1742751989904,5.01054,1995.8,1995.2,5.01179]
[1742751990101,2.97880042,1995.7,1995.2,10.02366]
[1742751990306,2.97880042,1995.7,1995.2,6.089666]
[1742751990501,7.98960042,1995.7,1995.2,6.113876]
[1742751991207,2.97880042,1995.6,1995.2,11.125896]
[1742751991806,5.01028,1995.9,1995.3,5.01175]
[1742751992005,7.98934042,1995.8,1995.3,5.01175]
[1742751992207,7.98934042,1995.8,1995.3,6.6255146]
[1742751993349,2.97880042,1995.7,1995.3,6.6255146]
[1742751993535,2.97880042,1995.8,1995.3,6.6255146]
[1742751993709,2.97880042,1995.8,1995.4,0.7551]
[1742751993904,7.98932042,1995.8,1995.4,0.7551]
[1742751994119,7.98985042,1995.6,1995.2,0.7848]
[1742751994307,7.99044042,1995.4,1995.0,0.7848]
[1742751994509,2.97880042,1995.2,1995.0,0.7848]
[1742752001645,5.71252042,1995.2,1994.9,5.005]
[1742752001841,2.97880042,1995.1,1994.9,5.005]
[1742752007698,2.97880042,1995.3,1994.9,13.748641]
[1742752010109,5.01107,1995.6,1995.0,5.01237]
[1742752010412,2.97880042,1995.4,1994.9,13.748791]
[1742752011509,7.99034042,1995.4,1994.9,13.748791]
[1742752011713,2.97880042,1995.2,1994.9,13.748791]
[1742752012981,2.97880042,1995.2,1994.9,8.736081]
[1742752013172,2.97880042,1995.2,1994.9,5.005]
[1742752013378,7.99097042,1995.2,1994.9,5.005]
[1742752013578,7.99097042,1995.2,1994.8,27.2928]
[1742752013814,7.99097042,1995.2,1994.8,32.2578]
[1742752014013,7.99097042,1995.2,1994.8,35.984901]
[1742752015119,2.97880042,1995.2,1994.8,40.997911]
[1742752015315,2.97880042,1995.2,1994.8,36.032911]
[1742752015506,2.97880042,1995.2,1994.8,40.992911]
[1742752015813,2.97880042,1995.2,1994.8,40.990911]
[1742752016110,2.97880042,1995.2,1994.8,36.032911]
[1742752016308,2.97880042,1995.2,1994.8,40.989911]
[1742752016816,2.97880042,1995.4,1995.0,5.01237]
[1742752017110,7.99033042,1995.4,1995.0,5.01237]
[1742752017709,7.99033042,1995.4,1994.9,9.1117211]
[1742752019696,2.97880042,1995.4,1995.0,5.01248]
[1742752020019,2.97880042,1995.4,1995.1,0.796]
[1742752020731,7.99036042,1995.4,1995.1,0.796]
[1742752020930,7.99096042,1995.2,1994.9,0.796]
[1742752021103,2.97880042,1995.0,1994.9,0.796]
[1742752025751,7.99141042,1995.0,1994.8,26.508]
[1742752025930,5.01278,1994.9,1994.8,26.508]
[1742752028354,5.01312,1994.8,1994.3,5.01418]
[1742752028561,2.97880042,1994.6,1994.3,5.01418]
[1742752028917,2.97880042,1994.6,1994.2,37.21512]
[1742752029616,2.97880042,1994.6,1994.2,42.22953]
[1742752029817,2.97880042,1994.6,1994.3,5.01428]
[1742752030016,2.97880042,1994.6,1994.3,9.237209]
[1742752033234,2.97880042,1994.6,1994.3,5.01428]
[1742752033531,2.97880042,1994.6,1994.2,37.21501]
[1742752033746,2.97880042,1994.6,1994.2,42.22937]
[1742752034156,7.99236042,1994.6,1994.2,37.21496]
[1742752034833,2.97880042,1994.6,1994.2,37.21496]
[1742752035055,2.97880042,1994.6,1994.2,40.936456]
[1742752035375,2.97880042,1994.6,1994.3,5.01428]
[1742752035546,2.97880042,1994.6,1994.2,40.936616]
[1742752035894,2.97880042,1994.4,1994.2,26.506]
[1742752038667,5.0138,1994.5,1994.2,26.506]
[1742752038976,2.97880042,1994.4,1994.2,26.506]
[1742752040257,5.01429,1994.3,1994.2,26.506]
[1742752041048,5.01499,1994.1,1993.7,0.99711279]
[1742752041254,2.97880042,1994.0,1993.7,6.01279279]
[1742752041482,2.97880042,1994.2,1993.8,5.01554]
[1742752041647,2.97880042,1994.4,1994.1,5.01479]
[1742752041853,2.97880042,1994.4,1994.0,5.6944]
[1742752042049,2.97880042,1994.4,1994.0,10.70938]
[1742752042255,2.97880042,1994.2,1994.0,5.6944]
[1742752042452,2.97880042,1994.2,1994.0,11.780172]
[1742752042653,2.97880042,1994.2,1994.1,5.01479]
[1742752042975,2.97880042,1994.2,1994.0,11.780172]
[1742752043654,2.97880042,1994.2,1994.0,6.765352]
[1742752043851,2.97880042,1994.2,1994.0,5.6944]
[1742752044079,7.99335042,1994.2,1993.8,5.81893]
[1742752044376,7.99335042,1994.2,1993.8,10.70393]
[1742752045181,2.97880042,1994.0,1993.8,4.885]
[1742752046384,2.97880042,1994.0,1993.8,9.90054]
[1742752048080,2.97880042,1994.2,1993.8,9.90054]
[1742752048280,2.97880042,1994.2,1993.9,5.01526]
[1742752048586,2.97880042,1994.4,1994.2,5.01434]
[1742752048791,5.01327,1994.8,1994.3,5.01429]
[1742752048949,2.97880042,1994.7,1994.3,10.69555]
[1742752049783,2.97880042,1994.7,1994.4,5.01402]
[1742752049950,2.97880042,1994.7,1994.4,6.584977]
[1742752052086,2.97880042,1994.7,1994.4,1.570957]
[1742752052380,7.99210042,1994.7,1994.3,10.69555]
[1742752052550,2.97880042,1994.7,1994.3,10.69555]
[1742752052886,2.97880042,1994.7,1994.3,15.70974]
[1742752053047,2.97880042,1994.7,1994.4,5.01401]
[1742752053545,2.97880042,1995.2,1994.5,5.515071]
[1742752053790,2.97880042,1994.9,1994.7,0.8257]
[1742752053954,5.01237,1995.1,1994.7,0.8257]
[1742752054150,2.97880042,1995.1,1994.8,5.01301]
[1742752054364,2.97880042,1995.1,1994.8,6.098189]
[1742752054996,2.97880042,1995.1,1994.8,6.097969]
[1742752055301,2.97880042,1995.1,1994.9,5.01277]
[1742752056607,2.97880042,1995.1,1994.8,6.097969]
[1742752057922,2.97880042,1995.1,1994.8,11.110899]
[1742752058229,2.97880042,1995.1,1994.9,1.1110899]
[1742752058730,5.0118,1995.3,1994.8,5.01279]
[1742752058731,2.97880042,1995.2,1994.8,5.01279]
[1742752058936,2.97880042,1995.0,1994.8,10.02571]
[1742752059516,2.97880042,1995.2,1994.8,10.02571]
[1742752060435,2.97880042,1995.2,1994.9,5.01274]
[1742752061222,2.97880042,1995.2,1995.0,5.83823]
[1742752061420,2.97880042,1995.2,1995.0,6.923327]
[1742752061829,2.97880042,1995.2,1995.1,5.01228]
[1742752062536,10.02242,1995.6,1995.1,5.01228]
[1742752062537,2.97880042,1995.6,1995.1,9.88021]
[1742752062706,2.97880042,1995.6,1995.3,5.83746]
[1742752062909,2.97880042,1995.6,1995.3,1.910626]
[1742752064310,2.97880042,1995.6,1995.3,0.8257]
[1742752067301,2.97880042,1995.6,1995.3,5.83746]
[1742752068316,2.97880042,1995.6,1995.3,10.84908]
[1742752068514,2.97880042,1995.6,1995.3,5.83732]
[1742752070162,2.97880042,1995.6,1995.4,5.01148]
[1742752070464,2.97880042,1995.8,1995.4,1.08488]
[1742752070647,2.97880042,1995.8,1995.5,5.01127]
[1742752070854,2.97880042,1995.8,1995.6,5.76496]
[1742752071229,2.97880042,1995.8,1995.6,5.76485]
[1742752071429,2.97880042,1996.1,1995.7,5.01058]
[1742752071664,2.97880042,1996.1,1995.8,5.01042]
[1742752071829,5.00902,1996.4,1995.9,0.754]
[1742752072026,2.97880042,1996.2,1995.9,5.76426]
[1742752072268,2.97880042,1996.2,1995.9,10.61326]
[1742752072930,2.97880042,1996.2,1995.9,5.603]
[1742752073771,2.97880042,1996.2,1995.9,6.664348]
[1742752073969,2.97880042,1996.2,1995.9,11.674498]
[1742752074135,2.97880042,1996.2,1995.9,16.684568]
[1742752074334,2.97880042,1996.2,1996.0,5.00992]
[1742752074667,2.97880042,1996.2,1996.0,5.00985]
[1742752074868,2.97880042,1996.2,1996.1,0.500985]
[1742752076097,2.97880042,1996.2,1995.9,1.061348]
[1742752076281,2.97880042,1996.0,1995.8,4.842]
[1742752078079,2.97880042,1996.0,1995.8,9.85252]
[1742752078370,5.00918,1996.4,1995.9,5.76416]
[1742752078585,2.97880042,1996.2,1995.9,5.76416]
[1742752078737,2.97880042,1996.2,1995.9,5.76413]
[1742752078941,2.97880042,1996.2,1995.9,2.315664]
[1742752079475,2.97880042,1996.0,1995.9,1.561664]
[1742752079781,2.97880042,1996.0,1995.8,4.842]
[1742752080903,2.97880042,1996.0,1995.8,9.85246]
[1742752081202,2.97880042,1996.0,1995.8,4.842]
[1742752082102,5.38530056,1996.4,1995.9,5.01005]
[1742752082310,2.97880042,1996.2,1995.9,5.01005]
[1742752082607,2.97880042,1996.2,1996.0,0.501005]
[1742752082773,2.97880042,1996.2,1995.9,5.01005]
[1742752082978,2.97880042,1996.2,1995.8,9.85246]
[1742752083378,2.97880042,1996.0,1995.8,4.842]
[1742752084793,2.97880042,1996.0,1995.8,9.85235]
[1742752085811,2.97880042,1996.2,1995.9,5.01027]
[1742752086111,10.01733,1996.6,1996.0,5.8359]
[1742752086311,2.97880042,1996.3,1996.0,5.8359]
[1742752086878,2.97880042,1996.3,1996.0,5.83579]
[1742752087274,2.97880042,1996.3,1996.0,0.8259]
[1742752087486,2.97880042,1996.3,1996.0,1.5581422]
[1742752088115,5.0089,1996.5,1996.0,6.5679622]
[1742752088314,2.97880042,1996.3,1996.0,6.5679622]
[1742752088821,2.97880042,1996.3,1996.1,5.00975]
[1742752090025,2.97880042,1996.3,1996.0,0.7322422]
[1742752090233,2.97880042,1996.1,1996.0,0.7322422]
[1742752098035,2.97880042,1996.1,1995.9,31.31]
[1742752101261,2.97880042,1996.1,1995.9,26.494]
[1742752101668,5.01089,1995.7,1995.1,5.01218]
[1742752101967,2.97880042,1995.6,1995.3,9.80877]
[1742752102169,2.97880042,1995.6,1995.4,0.980877]
[1742752103857,2.97880042,1995.6,1995.2,37.1291]
[1742752104061,2.97880042,1995.4,1995.2,32.1172]
[1742752104860,2.97880042,1995.4,1995.2,37.12922]
[1742752106062,2.97880042,1995.4,1995.2,26.492]
[1742752106556,13.00215042,1995.4,1995.2,26.492]
[1742752107147,5.01177,1995.3,1995.2,26.492]
[1742752109751,5.01257,1995.0,1994.6,26.497]
[1742752109955,2.97880042,1994.7,1994.6,26.497]
[1742752110357,7.99208042,1994.7,1994.6,26.497]
[1742752115791,2.97880042,1994.7,1994.6,26.497]
[1742752116007,7.99208042,1994.7,1994.6,26.497]
[1742752119398,7.99208042,1994.7,1994.2,36.30651]
[1742752119581,2.97880042,1994.4,1994.2,36.30651]
[1742752125290,5.01278,1994.9,1994.3,5.01416]
[1742752125490,2.97880042,1994.6,1994.4,5.78654]
[1742752125966,2.97880042,1994.8,1994.5,5.01378]
[1742752126171,5.01204,1995.2,1994.7,5.78569]
[1742752126495,2.97880042,1995.1,1994.7,5.78586]
[1742752126799,2.97880042,1995.1,1994.8,5.01293]
[1742752127185,2.97880042,1995.1,1994.8,0.55]
[1742752127381,2.97880042,1995.1,1994.9,5.01266]
[1742752129006,2.97880042,1995.1,1994.7,5.78586]
[1742752129184,2.97880042,1995.1,1994.7,10.79899]
[1742752129380,2.97880042,1994.9,1994.5,5.592278]
[1742752129613,2.97880042,1994.7,1994.6,4.766]
[1742752131929,2.97880042,1994.7,1994.3,10.5332]
[1742752132337,7.99209042,1994.7,1994.3,10.5332]
[1742752132633,2.97880042,1994.5,1994.3,10.5332]
[1742752133628,2.97880042,1994.5,1994.3,4.766]
[1742752136635,2.97880042,1994.8,1994.6,5.01335]
[1742752136841,2.97880042,1994.8,1994.7,0.7502]
[1742752137033,2.97880042,1994.8,1994.7,10.52948]
[1742752137234,9.77776,1995.4,1994.7,10.52948]
[1742752137235,2.97880042,1995.0,1994.8,5.01291]
[1742752137408,2.97880042,1995.2,1994.8,5.01291]
[1742752137617,2.97880042,1995.2,1994.8,6.065691]
[1742752137941,2.97880042,1995.2,1994.8,11.078561]
[1742752138146,2.97880042,1995.0,1994.8,5.01278]
[1742752138642,2.97880042,1995.0,1994.7,10.52947]
[1742752139745,2.97880042,1995.0,1994.8,26.51]
[1742752140042,2.97880042,1995.0,1994.8,31.276]
[1742752140347,2.97880042,1995.0,1994.8,36.28898]
[1742752140535,2.97880042,1995.0,1994.8,40.494208]
[1742752141509,2.97880042,1995.0,1994.8,35.481228]
[1742752141846,2.97880042,1995.0,1994.8,31.276]
[1742752142047,7.99146042,1995.0,1994.8,26.51]
[1742752142253,5.01278,1994.9,1994.8,26.51]
[1742752142599,7.99146042,1995.0,1994.8,26.51]
[1742752143545,13.00419042,1995.0,1994.8,26.51]
[1742752144451,5.01278,1994.9,1994.8,26.51]
[1742752144635,5.01337,1994.7,1994.5,26.509]
[1742752144950,7.99233042,1994.6,1994.5,26.509]
[1742752149435,5.01405,1994.4,1994.2,4.766]
[1742752149633,2.97880042,1994.3,1994.2,4.766]
[1742752150373,7.99266042,1994.5,1994.2,4.766]
[1742752153177,5.01421,1994.4,1994.1,0.7647]
[1742752153358,7.99259042,1994.5,1994.1,5.77946]
[1742752153533,5.01379,1994.5,1994.1,10.79413]
[1742752153828,7.99235042,1994.6,1994.2,5.01452]
[1742752154232,5.01385,1994.5,1994.1,5.77937]
[1742752154470,5.01385,1994.5,1994.1,9.98651]
[1742752154947,5.01453,1994.3,1994.0,26.51]
[1742752155166,5.01464,1994.2,1994.0,26.51]
[1742752155371,5.01479,1994.1,1994.0,26.51]
[1742752156685,7.99337042,1994.2,1994.0,26.51]
[1742752156854,7.99293042,1994.4,1994.0,31.52493]
[1742752157062,5.01429,1994.3,1994.0,26.51]
[1742752157560,5.01429,1994.3,1993.9,15.56206]
[1742752157561,5.01539,1993.9,1993.7,0.7647]
[1742752157760,2.97880042,1993.8,1993.6,0.7647]
[1742752158170,7.99444042,1993.8,1993.6,0.7647]
[1742752158560,7.99444042,1993.8,1993.5,4.774]
[1742752159086,5.01583,1993.7,1993.4,0.7724]
[1742752159396,5.01621,1993.6,1993.4,0.7724]
[1742752160070,5.01621,1993.6,1993.3,5.5444]
[1742752160394,7.99501042,1993.6,1993.3,5.5444]
[1742752160685,7.92856947,1993.6,1993.3,5.5444]
[1742752162284,3.34797277,1993.8,1993.3,9.251944]
[1742752162463,7.99436042,1993.8,1993.4,5.0163]
[1742752163190,7.99436042,1993.8,1993.3,9.251944]
[1742752163191,5.01515,1994.0,1993.6,5.78835]
[1742752163488,7.99427042,1993.9,1993.6,1.852865]
[1742752163662,7.99427042,1993.9,1993.6,0.7724]
[1742752163985,2.97880042,1993.9,1993.6,0.7724]
[1742752164213,5.01477,1994.2,1993.6,0.7724]
[1742752164371,7.99315042,1994.3,1993.8,5.01554]
[1742752164688,7.99315042,1994.3,1993.9,5.78759]
[1742752164892,2.97880042,1994.3,1994.0,5.01502]
[1742752166300,2.97880042,1994.3,1993.9,6.867973]
[1742752166498,7.99321042,1994.3,1993.9,6.867973]
[1742752166790,2.97880042,1994.3,1994.0,31.53502]
[1742752166994,7.99264042,1994.5,1994.0,31.53502]
[1742752167165,7.99264042,1994.5,1994.1,12.939142]
[1742752167690,5.01411,1994.4,1994.1,7.924502]
[1742752167894,7.99264042,1994.5,1994.1,7.924502]
[1742752168217,7.99264042,1994.5,1994.1,12.939282]
[1742752168791,7.99264042,1994.5,1994.2,0.7724]
[1742752168792,2.97880042,1994.5,1994.2,0.7724]
[1742752169181,2.97880042,1994.5,1994.2,2.1435592]
[1742752169363,7.99225042,1994.7,1994.2,2.1435592]
[1742752169562,7.99225042,1994.7,1994.2,7.1579992]
[1742752169786,5.01424,1994.4,1994.0,26.52]
[1742752170156,7.99359042,1994.1,1994.0,26.52]
[1742752170352,5.01594,1993.7,1993.4,5.5764]
[1742752170502,7.99474042,1993.7,1993.4,4.804]
[1742752171312,7.99474042,1993.7,1993.4,8.437967]
[1742752171806,2.97880042,1993.7,1993.4,8.437967]
[1742752172038,2.97880042,1993.7,1993.4,18.470787]
[1742752172253,2.97880042,1993.7,1993.4,13.454367]
[1742752172908,2.97880042,1993.7,1993.4,18.470787]
[1742752173236,7.99410042,1993.9,1993.5,2.6194787]
[1742752173957,7.99385042,1994.0,1993.5,7.6357287]
[1742752174255,2.97880042,1994.0,1993.7,5.01575]
[1742752174466,5.01485,1994.1,1993.7,5.01575]
[1742752174643,7.99365042,1994.1,1993.7,5.01575]
[1742752174968,7.99365042,1994.1,1993.7,6.018915]
[1742752175250,7.99365042,1994.1,1993.6,5.01599]
[1742752175427,2.97880042,1993.9,1993.6,10.03185]
[1742752175840,2.97880042,1993.9,1993.6,5.01586]
[1742752176015,2.97880042,1993.9,1993.6,10.03173]
[1742752176217,5.01614,1993.6,1993.3,26.519]
[1742752176443,2.97880042,1993.4,1993.3,26.519]
[1742752177645,7.99535042,1993.4,1993.3,26.519]
[1742752178022,2.97880042,1993.4,1993.3,26.519]
[1742752182856,7.99535042,1993.4,1993.3,26.519]
[1742752183391,2.97880042,1993.4,1993.3,26.519]
[1742752186690,5.01631,1993.5,1993.3,26.519]
[1742752187955,3.35994047,1993.7,1993.3,26.519]
[1742752188292,13.39187047,1993.7,1993.3,26.519]
[1742752188582,5.01605,1993.6,1993.3,26.519]
[1742752190194,12.81027042,1993.5,1992.4,0.8198]
[1742752190379,7.99752042,1992.6,1992.4,0.8198]
[1742752190585,5.01882,1992.5,1992.2,0.8198]
[1742752191295,10.03783,1992.5,1992.2,0.8198]
[1742752191591,5.01882,1992.5,1992.2,0.8198]
[1742752192357,7.99738042,1992.6,1992.2,0.8198]
[1742752192693,2.97880042,1992.6,1992.2,5.83934]
[1742752193354,2.97880042,1992.6,1992.2,6.926116]
[1742752193559,2.97880042,1992.6,1992.3,5.01922]
[1742752195160,2.97880042,1992.8,1992.3,5.01917]
[1742752195501,2.97880042,1992.8,1992.5,5.82001]
[1742752196008,2.97880042,1992.8,1992.5,5.81982]
[1742752196176,2.97880042,1992.8,1992.6,5.01847]
[1742752196502,2.97880042,1992.8,1992.5,6.887002]
[1742752197058,2.97880042,1992.8,1992.5,5.81982]
[1742752197502,7.99696042,1992.8,1992.5,0.8012]
[1742752198903,2.97880042,1992.8,1992.5,0.8012]
[1742752199402,2.97880042,1992.8,1992.5,5.81996]
[1742752201004,7.99687042,1992.8,1992.5,0.8012]
[1742752201192,7.99687042,1992.8,1992.4,9.85989]
[1742752201900,2.97880042,1992.8,1992.5,5.0187]
[1742752202702,2.97880042,1992.8,1992.4,4.841]
[1742752202868,7.99696042,1992.8,1992.4,9.86003]
[1742752204611,2.97880042,1992.8,1992.4,9.86003]
[1742752204777,2.97880042,1992.8,1992.4,11.56116082]
[1742752204980,2.97880042,1992.8,1992.5,5.01864]
[1742752206015,7.99690042,1992.8,1992.4,11.56120082]
[1742752206195,7.99690042,1992.8,1992.4,9.86007]
[1742752207211,2.97880042,1992.8,1992.4,14.87899]
[1742752208006,2.97880042,1992.8,1992.6,5.01838]
[1742752208410,2.97880042,1992.8,1992.5,5.01873]
[1742752208572,2.97880042,1992.8,1992.4,9.85992]
[1742752208770,2.97880042,1992.8,1992.4,16.21924809]
[1742752209315,2.97880042,1992.8,1992.4,11.20031809]
[1742752209484,2.97880042,1992.8,1992.5,5.01881]
[1742752215726,2.97880042,1993.0,1992.7,5.01807]
[1742752216299,2.97880042,1992.8,1992.6,0.7951]
[1742752216488,2.97880042,1992.8,1992.4,10.65495]
[1742752216684,5.01759,1993.0,1992.6,5.01845]
[1742752216913,7.99639042,1993.0,1992.6,5.01845]
[1742752217316,8.36519343,1993.0,1992.6,5.01845]
[1742752217615,2.97880042,1993.0,1992.7,5.01828]
[1742752217819,2.97880042,1993.0,1992.8,5.01804]
[1742752218018,2.97880042,1993.0,1992.7,5.81334]
[1742752218323,5.01668,1993.4,1992.9,5.01781]
[1742752218623,2.97880042,1993.3,1992.9,5.01781]
[1742752219049,2.97880042,1993.1,1992.8,9.83506]
[1742752219208,2.97880042,1993.1,1992.8,4.817]
[1742752219794,2.97880042,1993.1,1992.8,9.83504]
[1742752220518,5.01656,1993.4,1992.9,5.0177]
[1742752220725,2.97880042,1993.2,1992.9,10.03533]
[1742752220920,2.97880042,1993.2,1993.0,5.01751]
[1742752221136,2.97880042,1993.2,1993.0,5.78251]
[1742752221828,2.97880042,1993.2,1993.0,0.765]
[1742752222936,2.97880042,1993.4,1993.1,5.01719]
[1742752223493,2.97880042,1993.4,1993.1,10.03431]
[1742752224034,2.97880042,1993.4,1993.1,5.01712]
[1742752224402,2.97880042,1993.4,1993.1,11.114197]
[1742752224843,2.97880042,1993.4,1993.1,6.097077]
[1742752225127,5.0158,1993.7,1993.2,4.808]
[1742752225308,2.97880042,1993.5,1993.2,9.82494]
[1742752225828,7.99526042,1993.5,1993.2,4.808]
[1742752226016,5.01662,1993.4,1993.2,4.808]
[1742752226217,2.97880042,1993.3,1993.2,4.808]
[1742752227620,7.99526042,1993.5,1993.2,4.808]
[1742752228048,2.97880042,1993.5,1993.2,4.808]
[1742752228923,2.97880042,1993.5,1993.2,9.82495]
[1742752229336,2.97880042,1993.3,1993.2,4.808]
[1742752231039,7.99564042,1993.3,1993.0,5.575]
[1742752231219,8.36494674,1993.6,1992.9,26.536]
[1742752231220,2.97880042,1993.1,1992.9,26.536]
[1742752231417,0.19723304,1993.0,1992.9,26.536]
[1742752238460,0.19723304,1993.0,1992.9,31.55381]
[1742752238838,0.19723304,1993.0,1992.9,26.536]
[1742752241066,0.19723304,1993.0,1992.9,31.55381]
[1742752241274,7.99560042,1993.3,1992.9,35.76848]
[1742752241491,0.19140831,1993.0,1992.9,31.55381]
[1742752241676,7.99560042,1993.3,1992.9,31.55381]
[1742752241885,0.19140831,1993.0,1992.9,31.55381]
[1742752242045,7.99560042,1993.3,1992.9,31.55381]
[1742752242381,0.19221428,1993.2,1992.9,31.55381]
[1742752242875,0.19221428,1993.2,1993.1,5.0173]
[1742752243075,7.99548042,1993.4,1993.0,5.83887]
[1742752243374,0.19221428,1993.2,1993.0,5.83887]
[1742752243545,5.01682,1993.3,1993.0,5.83887]
[1742752243741,0.19181131,1993.1,1993.0,5.83887]
[1742752243957,2.97880042,1993.4,1993.0,9.999604]
[1742752243958,7.99542042,1993.4,1993.0,9.999604]
[1742752244153,0.19181131,1993.1,1993.0,5.83887]
[1742752244364,7.99542042,1993.4,1993.0,5.83887]
[1742752244842,0.19249159,1993.3,1993.0,5.83887]
[1742752245045,7.99542042,1993.4,1993.0,5.83887]
[1742752245334,0.19247189,1993.3,1993.0,5.83887]
[1742752245480,7.99542042,1993.4,1993.0,9.578137]
[1742752245682,0.19213305,1993.2,1993.0,9.578137]
[1742752245911,7.99542042,1993.4,1993.0,9.578137]
[1742752246224,0.19173009,1993.1,1993.0,9.578137]
[1742752246377,7.99542042,1993.4,1993.0,14.595517]
[1742752246579,0.19173009,1993.1,1993.0,14.595517]
[1742752246887,7.99538042,1993.4,1993.0,14.595517]
[1742752247086,7.99538042,1993.4,1993.1,1.4595517]
[1742752247286,0.19253597,1993.3,1993.1,1.4595517]
[1742752247485,7.99538042,1993.4,1993.1,1.4595517]
[1742752247684,0.19213305,1993.2,1993.1,1.4595517]
[1742752248020,7.99538042,1993.4,1993.1,1.4595517]
[1742752248325,2.97880042,1993.4,1993.1,6.4768317]
[1742752248823,0.1923283,1993.3,1993.1,6.4768317]
[1742752249246,2.97880042,1993.4,1993.1,6.4768317]
[1742752249703,0.1923283,1993.3,1993.1,6.4768317]
[1742752249903,2.97880042,1993.4,1993.1,6.4768317]
[1742752250251,0.19192537,1993.2,1993.1,6.4768317]
[1742752250427,7.99537042,1993.4,1993.1,6.4768317]
[1742752250598,0.19192537,1993.2,1993.1,6.4768317]
[1742752250794,7.99537042,1993.4,1993.1,6.4768317]
[1742752250997,0.19198943,1993.2,1993.1,6.4768317]
[1742752251244,7.99537042,1993.4,1993.1,6.4768317]
[1742752251598,0.192371,1993.3,1993.1,6.4768317]
[1742752251999,7.99537042,1993.4,1993.1,6.4768317]
[1742752252198,0.19196808,1993.2,1993.1,6.4768317]
[1742752252415,7.99537042,1993.4,1993.1,6.4768317]
[1742752252616,0.19196808,1993.2,1993.1,6.4768317]
[1742752252824,7.99537042,1993.4,1993.1,6.4768317]
[1742752253018,0.19196808,1993.2,1993.1,5.01728]
[1742752253216,7.99537042,1993.4,1993.1,5.01728]
[1742752253439,0.19196808,1993.2,1993.1,5.01728]
[1742752253640,13.01204042,1993.4,1993.0,9.578047]
[1742752253814,0.19196808,1993.2,1993.0,5.83878]
[1742752254022,7.99537042,1993.4,1993.0,5.83878]
[1742752254500,0.19239235,1993.3,1993.0,5.83878]
[1742752254807,7.99537042,1993.4,1993.0,5.83878]
[1742752255010,0.19198943,1993.2,1993.0,5.83878]
[1742752255349,0.19158646,1993.1,1993.0,9.578036]
[1742752255516,7.99537042,1993.4,1993.0,9.578036]
[1742752255717,0.19158646,1993.1,1993.0,5.83878]